bitfinex/quotes_BTCUSD_20250522
["timestamp","ask_amount","ask_price","bid_price","bid_amount"]
[1747950599119,0.004,110700.0,110690.0,5.60694138]
[1747950599727,0.006,110700.0,110690.0,5.63184138]
[1747950601112,0.01503268,110700.0,110690.0,6.03184138]
[1747950602119,0.01503268,110700.0,110690.0,6.02338651]
[1747950602533,0.006,110700.0,110690.0,6.02338651]
[1747950603152,0.01503268,110700.0,110690.0,6.02338651]
[1747950603905,0.006,110700.0,110690.0,6.02338651]
[1747950604127,0.02406594,110700.0,110690.0,6.02338651]
[1747950604314,0.006,110700.0,110690.0,6.02338651]
[1747950604528,0.01503277,110700.0,110690.0,6.02338651]
[1747950605521,0.0240657,110700.0,110690.0,6.02338651]
[1747950605733,0.01503277,110700.0,110690.0,6.02338651]
[1747950607613,0.01503277,110700.0,110690.0,6.05047351]
[1747950607820,0.006,110700.0,110690.0,6.05047351]
[1747950608217,0.01503268,110700.0,110690.0,6.05047351]
[1747950608631,0.006,110700.0,110690.0,6.05047351]
[1747950610195,0.01503277,110700.0,110690.0,6.05047351]
[1747950610657,0.006,110700.0,110690.0,6.05047351]
[1747950611307,0.006,110700.0,110690.0,6.65835351]
[1747950616055,0.002,110700.0,110690.0,6.65835351]
[1747950618566,0.002,110700.0,110690.0,6.48821323]
[1747950618853,0.002,110700.0,110690.0,6.51531495]
[1747950623720,0.002,110700.0,110690.0,6.60486051]
[1747950625937,0.002,110700.0,110690.0,6.92966051]
[1747950626150,0.002,110710.0,110700.0,0.60256775]
[1747950626351,0.002,110710.0,110700.0,5.74211331]
[1747950626767,0.002,110710.0,110700.0,6.14211331]
[1747950626974,0.002,110710.0,110700.0,6.16919531]
[1747950627441,0.003,110710.0,110700.0,6.16919531]
[1747950628066,0.004,110710.0,110700.0,6.16919531]
[1747950629385,0.003,110710.0,110700.0,6.16919531]
[1747950629608,0.004,110710.0,110700.0,6.16919531]
[1747950630312,0.003,110710.0,110700.0,6.16919531]
[1747950630516,0.004,110710.0,110700.0,6.17319531]
[1747950631749,0.0150304,110730.0,110720.0,0.20773022]
[1747950631969,0.08686088,110730.0,110720.0,5.90617339]
[1747950632419,0.08686088,110730.0,110720.0,5.93325639]
[1747950632950,0.08786088,110730.0,110720.0,5.93330739]
[1747950633697,0.08786088,110730.0,110720.0,6.27330739]
[1747950635211,0.0698,110730.0,110720.0,6.27330739]
[1747950635432,0.07883032,110730.0,110720.0,6.27330739]
[1747950635643,0.07883032,110730.0,110720.0,6.28701517]
[1747950635886,0.003,110730.0,110720.0,6.83136073]
[1747950637242,0.003,110730.0,110720.0,6.83436073]
[1747950637956,0.004,110730.0,110720.0,6.83736073]
[1747950639641,0.004,110730.0,110720.0,6.59286151]
[1747950639858,0.004,110730.0,110720.0,6.77349734]
[1747950640062,0.07782869,110750.0,110740.0,0.20769269]
[1747950640249,0.08685754,110750.0,110740.0,6.19580491]
[1747950640650,0.07382869,110750.0,110740.0,6.22288391]
[1747950640855,0.08685754,110750.0,110740.0,6.22288391]
[1747950641061,0.0648,110750.0,110740.0,6.22288391]
[1747950641264,0.0698,110750.0,110740.0,6.22488391]
[1747950641485,0.02061736,110750.0,110740.0,6.18244269]
[1747950641955,0.01661736,110750.0,110740.0,6.18444269]
[1747950642145,0.002,110750.0,110740.0,6.18444269]
[1747950642301,0.002,110750.0,110740.0,6.21694269]
[1747950642951,0.002,110750.0,110740.0,6.61694269]
[1747950643147,0.002,110750.0,110740.0,6.95694269]
[1747950643996,0.002,110750.0,110740.0,6.98944269]
[1747950644805,0.001,110750.0,110740.0,6.98744269]
[1747950645220,0.001,110750.0,110740.0,6.98844269]
[1747950645572,0.0809542,110770.0,110760.0,0.54765519]
[1747950645777,0.09398158,110770.0,110760.0,6.16848619]
[1747950646450,0.08998158,110770.0,110760.0,6.16848619]
[1747950646572,0.09398158,110770.0,110760.0,6.16848619]
[1747950646772,0.09649188,110770.0,110760.0,6.16848619]
[1747950647424,0.10551918,110770.0,110760.0,6.16848619]
[1747950647631,0.09749188,110770.0,110760.0,6.16848619]
[1747950647837,0.0704103,110770.0,110760.0,6.16848619]
[1747950648063,0.07943736,110770.0,110760.0,6.1414016]
[1747950648263,0.07543736,110770.0,110760.0,6.1414016]
[1747950648467,0.07943736,110770.0,110760.0,6.1414016]
[1747950648677,0.08846466,110770.0,110760.0,6.17774854]
[1747950648956,0.08746466,110770.0,110760.0,6.17774854]
[1747950649143,0.05776466,110770.0,110760.0,6.17774854]
[1747950649336,0.08826466,110770.0,110760.0,6.17774854]
[1747950650003,0.09529213,110770.0,110760.0,6.17774854]
[1747950650919,0.0862645,110770.0,110760.0,6.17774854]
[1747950651165,0.0952918,110770.0,110760.0,6.17774854]
[1747950651383,0.10431918,110770.0,110760.0,6.17774854]
[1747950652496,0.0952918,110770.0,110760.0,6.17774854]
[1747950653533,0.0862645,110770.0,110760.0,6.17774854]
[1747950653856,0.0822645,110770.0,110760.0,6.17774854]
[1747950654128,0.0862645,110770.0,110760.0,6.17774854]
[1747950654445,0.0952918,110770.0,110760.0,6.17774854]
[1747950654601,0.0952918,110770.0,110760.0,6.20482154]
[1747950654986,0.07323728,110770.0,110760.0,6.20482154]
[1747950655192,0.08626442,110770.0,110760.0,6.60482154]
[1747950655393,0.08226434,110770.0,110760.0,6.60482154]
[1747950655633,0.07723728,110770.0,110760.0,6.60482154]
[1747950655849,0.04273728,110770.0,110760.0,6.60482154]
[1747950656100,0.05176434,110770.0,110760.0,6.60482154]
[1747950656281,0.06479156,110770.0,110760.0,6.60482154]
[1747950656417,0.09799156,110770.0,110760.0,6.60482154]
[1747950656632,0.08496434,110770.0,110760.0,6.60482154]
[1747950656833,0.08896434,110770.0,110760.0,6.60482154]
[1747950657256,0.09799156,110770.0,110760.0,6.60482154]
[1747950657994,0.07593728,110770.0,110760.0,6.60482154]
[1747950658198,0.08496434,110770.0,110760.0,6.60482154]
[1747950658809,0.05176434,110770.0,110760.0,6.60482154]
[1747950659256,0.0035103,110770.0,110760.0,6.63622154]
[1747950659904,0.0025103,110770.0,110760.0,6.7257671]
[1747950660325,0.0025103,110770.0,110760.0,6.7287671]
[1747950661853,0.0025103,110770.0,110760.0,7.0533671]
[1747950664984,0.0025103,110770.0,110760.0,6.4143671]
[1747950665178,0.09279221,110770.0,110760.0,6.93222154]
[1747950665326,0.09279213,110770.0,110760.0,6.93222154]
[1747950666335,0.09279213,110770.0,110760.0,6.32482154]
[1747950666461,0.09279213,110770.0,110760.0,6.93798154]
[1747950666865,0.10181968,110770.0,110760.0,6.93798154]
[1747950667104,0.10181968,110770.0,110760.0,6.32482154]
[1747950667338,0.27734749,110770.0,110760.0,5.90676548]
[1747950667562,0.36840635,110770.0,110760.0,0.697313]
[1747950667793,0.19864501,110750.0,110740.0,0.3246]
[1747950668019,0.19864501,110750.0,110740.0,1.387741]
[1747950668020,0.35139057,110750.0,110740.0,1.387741]
[1747950668239,0.35139057,110750.0,110740.0,1.36066]
[1747950668473,0.35139057,110750.0,110740.0,1.70066]
[1747950669332,0.35139057,110750.0,110740.0,1.36066]
[1747950669761,0.35139057,110750.0,110740.0,1.70366]
[1747950669980,0.35139057,110750.0,110740.0,1.70566]
[1747950670193,0.35139057,110750.0,110740.0,1.70266]
[1747950670404,0.35139057,110750.0,110740.0,1.71150857]
[1747950670633,0.35139057,110750.0,110740.0,1.71250857]
[1747950672405,0.35139057,110750.0,110740.0,1.43130857]
[1747950672970,0.35139057,110750.0,110740.0,1.43138857]
[1747950673436,0.35139057,110750.0,110740.0,0.81814857]
[1747950673646,0.35139057,110750.0,110740.0,1.43142857]
[1747950675733,0.35139057,110750.0,110740.0,0.81814857]
[1747950675943,0.35139057,110750.0,110740.0,1.43142857]
[1747950684737,0.35139057,110750.0,110740.0,0.81814857]
[1747950684944,0.35139057,110750.0,110740.0,1.43150857]
[1747950694924,0.35139057,110750.0,110740.0,0.81814857]
[1747950695134,0.35139057,110750.0,110740.0,1.43150857]
[1747950699934,0.35139057,110750.0,110740.0,1.42266]
[1747950702032,0.35139057,110750.0,110740.0,0.4693]
[1747950702273,0.35139057,110750.0,110740.0,1.0807]
[1747950704261,0.23584501,110750.0,110740.0,1.08972999]
[1747950704466,0.23404501,110750.0,110740.0,1.61936328]
[1747950704668,0.23404501,110750.0,110740.0,1.65547211]
[1747950704875,0.20264501,110750.0,110740.0,1.65547211]
[1747950706259,0.23504501,110750.0,110740.0,1.65547211]
[1747950707487,0.23504501,110750.0,110740.0,1.62839311]
[1747950709071,0.22601608,110750.0,110740.0,1.61936328]
[1747950709527,0.21167427,110750.0,110740.0,1.62839295]
[1747950709726,0.0310868,110750.0,110740.0,1.70072253]
[1747950710133,0.02708672,110750.0,110740.0,1.70072253]
[1747950710344,0.03108672,110750.0,110740.0,1.70072253]
[1747950710761,0.0401159,110750.0,110740.0,1.70072253]
[1747950711419,0.03108672,110750.0,110740.0,1.70072253]
[1747950712004,0.02708672,110750.0,110740.0,1.70072253]
[1747950712328,0.03108672,110750.0,110740.0,1.70072253]
[1747950712526,0.02708672,110750.0,110740.0,1.70072253]
[1747950713094,0.03108672,110750.0,110740.0,1.70072253]
[1747950713621,0.02708672,110750.0,110740.0,1.70072253]
[1747950714097,0.03108663,110750.0,110740.0,1.70072253]
[1747950714474,0.02205754,110750.0,110740.0,0.87196066]
[1747950714651,0.02205754,110750.0,110740.0,5.74349166]
[1747950714863,0.02708451,110760.0,110750.0,0.55670296]
[1747950715035,0.21668364,110760.0,110750.0,5.42823396]
[1747950715248,0.22068364,110760.0,110750.0,5.41920519]
[1747950715501,0.22068364,110760.0,110750.0,5.68980519]
[1747950715890,0.21668364,110760.0,110750.0,5.40114724]
[1747950716110,0.20362749,110760.0,110750.0,5.68077634]
[1747950716319,0.20062749,110760.0,110750.0,5.68980535]
[1747950716524,0.20462749,110760.0,110750.0,5.68980535]
[1747950716687,0.20062749,110760.0,110750.0,5.68077634]
[1747950716886,0.20462749,110760.0,110750.0,5.68077634]
[1747950717157,0.20062749,110760.0,110750.0,5.68077634]
[1747950717391,0.20462749,110760.0,110750.0,5.68077634]
[1747950717596,0.20462749,110760.0,110750.0,5.68980527]
[1747950718010,0.20062749,110760.0,110750.0,5.68980527]
[1747950718212,0.20462749,110760.0,110750.0,5.68980527]
[1747950718426,0.02405648,110760.0,110750.0,5.68980527]
[1747950718608,0.21365552,110760.0,110750.0,5.69883404]
[1747950718837,0.22268405,110760.0,110750.0,5.69883404]
[1747950719332,0.22268405,110760.0,110750.0,5.68980527]
[1747950721989,0.22268405,110760.0,110750.0,5.72240527]
[1747950722852,0.22268405,110760.0,110750.0,5.68980527]
[1747950723208,0.21365593,110760.0,110750.0,5.68980527]
[1747950723770,0.21365593,110760.0,110750.0,6.01448527]
[1747950724213,0.23512757,110760.0,110750.0,6.00545634]
[1747950724443,0.23512757,110760.0,110750.0,6.01448535]
[1747950724665,0.20462757,110760.0,110750.0,6.01448535]
[1747950725316,0.20462757,110760.0,110750.0,6.02351412]
[1747950725490,0.20462757,110760.0,110750.0,6.01448535]
[1747950725699,0.20462757,110760.0,110750.0,6.02351428]
[1747950727398,0.20462757,110760.0,110750.0,6.36423428]
[1747950729820,0.20462757,110760.0,110750.0,6.37326313]
[1747950730988,0.02405697,110760.0,110750.0,6.37326256]
[1747950734191,0.02405664,110760.0,110750.0,6.37326256]
[1747950735064,0.05565664,110760.0,110750.0,6.18107833]
[1747950735655,0.05565664,110760.0,110750.0,6.03326256]
[1747950737045,0.05565664,110760.0,110750.0,6.37326256]
[1747950737484,0.08775664,110760.0,110750.0,6.37326256]
[1747950738150,0.09678451,110760.0,110750.0,6.37326256]
[1747950741207,0.08775615,110760.0,110750.0,6.37326256]
[1747950741430,0.09678451,110760.0,110750.0,6.37326256]
[1747950741556,0.08775615,110760.0,110750.0,6.37326256]
[1747950741768,0.09678443,110760.0,110750.0,6.37326256]
[1747950742944,0.05565615,110760.0,110750.0,6.37326256]
[1747950743672,0.05565615,110760.0,110750.0,6.17526856]
[1747950744250,0.06468443,110760.0,110750.0,6.17526856]
[1747950745808,0.10531279,110760.0,110750.0,6.17526856]
[1747950747294,0.09628443,110760.0,110750.0,6.17526856]
[1747950750014,0.08725615,110760.0,110750.0,6.17526856]
[1747950750673,0.08725607,110760.0,110750.0,6.17526856]
[1747950751443,0.006,110760.0,110750.0,6.17526856]
[1747950751652,0.002,110760.0,110750.0,6.17526856]
[1747950752260,0.01102779,110760.0,110750.0,6.17526856]
[1747950753375,0.002,110760.0,110750.0,6.17526856]
[1747950754274,0.002,110760.0,110750.0,6.20706856]
[1747950754903,0.002,110760.0,110750.0,6.17526856]
[1747950755331,0.002,110760.0,110750.0,6.20526856]
[1747950755545,0.002,110760.0,110750.0,6.63746856]
[1747950756050,0.001,110760.0,110750.0,6.63746856]
[1747950756314,0.001,110760.0,110750.0,6.72701412]
[1747950756558,0.0025103,110770.0,110760.0,0.60975519]
[1747950756801,0.0015103,110770.0,110760.0,5.37283775]
[1747950757281,0.0015103,110770.0,110760.0,5.77283775]
[1747950758227,0.0015103,110770.0,110760.0,5.77483775]
[1747950758744,0.0015103,110770.0,110760.0,5.77683775]
[1747950762074,0.0661,110790.0,110760.0,5.74975316]
[1747950762316,0.04212535,110790.0,110780.0,0.2076177]
[1747950762526,0.04212535,110790.0,110780.0,4.8811547]
[1747950762953,0.04212535,110790.0,110780.0,5.2811547]
[1747950763840,0.0351,110790.0,110780.0,5.2811547]
[1747950764064,0.04412543,110790.0,110780.0,5.2811547]
[1747950764244,0.04812543,110790.0,110780.0,5.2811547]
[1747950764629,0.0351,110790.0,110780.0,5.2811547]
[1747950764880,0.04412543,110790.0,110780.0,5.2811547]
[1747950765047,0.04812543,110790.0,110780.0,5.2811547]
[1747950765243,0.04612543,110790.0,110780.0,5.2811547]
[1747950765501,0.09687702,110790.0,110780.0,5.2811547]
[1747950765722,0.0878511,110790.0,110780.0,5.2811547]
[1747950765878,0.0838511,110790.0,110780.0,5.2811547]
[1747950766461,0.0838511,110790.0,110780.0,5.29460484]
[1747950767095,0.0848511,110790.0,110780.0,5.29460484]
[1747950767454,0.08485102,110790.0,110780.0,5.29460484]
[1747950768298,0.09387669,110790.0,110780.0,5.29460484]
[1747950768550,0.08485102,110790.0,110780.0,5.29460484]
[1747950768757,0.09387669,110790.0,110780.0,5.90424484]
[1747950769866,0.08485102,110790.0,110780.0,6.24424484]
[1747950771405,0.09387677,110790.0,110780.0,5.63460484]
[1747950771614,0.09387677,110790.0,110780.0,6.24420484]
[1747950772304,0.08485102,110790.0,110780.0,6.24420484]
[1747950772493,0.09387669,110790.0,110780.0,6.24420484]
[1747950774722,0.10290253,110790.0,110780.0,6.24420484]
[1747950774866,0.10290253,110790.0,110780.0,5.63460484]
[1747950775295,0.10290253,110790.0,110780.0,6.24420484]
[1747950775692,0.28742488,110790.0,110780.0,5.54664514]
[1747950775896,0.26537362,110790.0,110780.0,5.63658714]
[1747950776106,0.26537362,110790.0,110780.0,5.36610714]
[1747950776334,0.26537362,110790.0,110780.0,4.36895014]
[1747950776762,0.26537362,110790.0,110780.0,3.76035014]
[1747950779266,0.26537362,110790.0,110780.0,3.70135014]
[1747950779473,0.26537362,110790.0,110780.0,3.67305014]
[1747950780859,0.26537362,110790.0,110780.0,3.99761014]
[1747950784182,0.26537362,110790.0,110780.0,3.67413014]
[1747950784410,0.26537362,110790.0,110780.0,3.94461014]
[1747950788188,0.26537362,110790.0,110780.0,3.60461014]
[1747950790415,0.26537362,110790.0,110780.0,3.94461014]
[1747950794186,0.26537362,110790.0,110780.0,3.73161014]
[1747950794668,0.35491918,110790.0,110780.0,2.73456]
[1747950794901,0.35491918,110790.0,110780.0,0.66332]
[1747950795199,0.35491918,110790.0,110780.0,0.93384]
[1747950796837,0.35491918,110790.0,110780.0,0.66332]
[1747950796838,0.36946003,110790.0,110780.0,0.66332]
[1747950797072,0.36946003,110790.0,110780.0,0.93384]
[1747950798206,0.26522692,110760.0,110750.0,0.21670254]
[1747950798427,0.26522692,110760.0,110750.0,5.22899954]
[1747950798681,0.26522717,110760.0,110750.0,5.21997053]
[1747950798900,0.25619913,110760.0,110750.0,5.21997053]
[1747950799106,0.25619913,110760.0,110750.0,5.21094135]
[1747950799320,0.25819913,110760.0,110750.0,5.48946135]
[1747950800200,0.25819913,110760.0,110750.0,5.82946135]
[1747950800969,0.25819913,110760.0,110750.0,5.22018135]
[1747950801204,0.25819913,110760.0,110750.0,5.82946135]
[1747950801443,0.25819913,110760.0,110750.0,5.83849053]
[1747950803774,0.25219913,110760.0,110750.0,6.15410135]
[1747950803982,0.2451706,110760.0,110750.0,5.955457]
[1747950805410,0.2451706,110760.0,110750.0,3.57432]
[1747950806745,0.2451706,110760.0,110750.0,2.24586]
[1747950810430,0.2451706,110760.0,110750.0,1.71226053]
[1747950810710,0.2451706,110760.0,110750.0,5.081898]
[1747950811341,0.2451706,110760.0,110750.0,5.2624849]
[1747950811574,0.2391706,110760.0,110750.0,4.63038934]
[1747950811789,0.2391706,110760.0,110750.0,4.62136]
[1747950813753,0.2391706,110760.0,110750.0,4.946]
[1747950814216,0.2391706,110760.0,110750.0,4.67544]
[1747950814421,0.2391706,110760.0,110750.0,4.946]
[1747950816594,0.2391706,110760.0,110750.0,4.33664]
[1747950816847,0.2391706,110760.0,110750.0,4.946]
[1747950817048,0.2391706,110760.0,110750.0,4.67544]
[1747950817245,0.2391706,110760.0,110750.0,4.946]
[1747950818089,0.2391706,110760.0,110750.0,5.286]
[1747950819188,0.2331706,110760.0,110750.0,5.286]
[1747950826962,0.2271706,110760.0,110750.0,5.286]
[1747950834757,0.2211706,110760.0,110750.0,5.286]
[1747950842468,0.2151706,110760.0,110750.0,5.286]
[1747950843233,0.1840706,110760.0,110750.0,5.286]
[1747950844045,0.2141706,110760.0,110750.0,5.286]
[1747950844503,0.2141706,110760.0,110750.0,5.01544]
[1747950844643,0.2141706,110760.0,110750.0,5.18744]
[1747950848129,0.2141706,110760.0,110750.0,4.25064]
[1747950848396,0.2141706,110760.0,110750.0,4.22624]
[1747950850153,0.2081706,110760.0,110750.0,4.05144]
[1747950850555,0.2081706,110760.0,110750.0,3.95134]
[1747950850992,0.2081706,110760.0,110750.0,3.64714]
[1747950851414,0.2081706,110760.0,110750.0,3.61504]
[1747950851622,0.2081706,110760.0,110750.0,1.83624]
[1747950854339,0.2081706,110760.0,110750.0,1.22564]
[1747950854549,0.2081706,110760.0,110750.0,1.49624]
[1747950857809,0.29171616,110760.0,110750.0,1.49624]
[1747950859419,0.29071616,110760.0,110750.0,1.22564]
[1747950859641,0.28971616,110760.0,110750.0,1.49624]
[1747950859885,0.29071616,110760.0,110750.0,1.22764]
[1747950860027,0.29171616,110760.0,110750.0,1.50024]
[1747950861244,0.29171616,110760.0,110750.0,1.22884]
[1747950861452,0.29171616,110760.0,110750.0,1.49944]
[1747950870106,0.29171616,110760.0,110750.0,1.22884]
[1747950870311,0.29171616,110760.0,110750.0,1.49944]
[1747950873236,0.29171616,110760.0,110750.0,1.50863204]
[1747950873598,0.29171616,110760.0,110750.0,1.25034521]
[1747950874013,0.29171616,110760.0,110750.0,1.67017204]
[1747950874237,0.29171616,110760.0,110750.0,1.28607204]
[1747950875969,0.29171616,110760.0,110750.0,1.27087204]
[1747950877737,0.29171616,110760.0,110750.0,1.25867204]
[1747950878729,0.29171616,110760.0,110750.0,1.24227204]
[1747950880508,0.29171616,110760.0,110750.0,1.24231204]
[1747950883956,0.29060101,110760.0,110750.0,1.24231204]
[1747950884871,0.29060101,110760.0,110750.0,1.23312]
[1747950886452,0.29060101,110760.0,110750.0,1.68996]
[1747950886674,0.29060101,110760.0,110750.0,1.10086]
[1747950887845,0.29060101,110760.0,110750.0,1.08696]
[1747950892951,0.22900101,110760.0,110750.0,1.08696]
[1747950894633,0.26110101,110760.0,110750.0,1.08696]
[1747950900961,0.29300101,110760.0,110750.0,1.08696]
[1747950906024,0.29275901,110760.0,110750.0,1.08696]
[1747950907602,0.20769221,110740.0,110730.0,0.95446281]
[1747950907805,0.20769221,110740.0,110730.0,5.10823581]
[1747950908853,0.21772237,110740.0,110730.0,5.38283581]
[1747950909169,0.21772237,110740.0,110730.0,5.38383581]
[1747950909170,0.21872237,110740.0,110730.0,5.38383581]
[1747950910464,0.20969246,110740.0,110730.0,5.38383581]
[1747950910821,0.21872237,110740.0,110730.0,5.38383581]
[1747950912140,0.21872237,110740.0,110730.0,5.39291607]
[1747950913875,0.03811916,110740.0,110730.0,5.71759607]
[1747950915602,0.029089,110740.0,110730.0,5.71759607]
[1747950915808,0.03811899,110740.0,110730.0,5.71759607]
[1747950916015,0.03811899,110740.0,110730.0,4.78451607]
[1747950917119,0.03811899,110740.0,110730.0,5.71751607]
[1747950918256,0.02908932,110740.0,110730.0,5.71751607]
[1747950918848,0.03811899,110740.0,110730.0,5.71751607]
[1747950920824,0.03811899,110740.0,110730.0,5.68571607]
[1747950921637,0.03811899,110740.0,110730.0,5.65571607]
[1747950921858,0.03811899,110740.0,110730.0,5.65547407]
[1747950922585,0.03811899,110740.0,110730.0,5.04715407]
[1747950922703,0.03811899,110740.0,110730.0,5.65547407]
[1747950925919,0.02908957,110740.0,110730.0,5.65547407]
[1747950926891,0.03811899,110740.0,110730.0,5.65547407]
[1747950933664,0.03211899,110740.0,110730.0,5.65547407]
[1747950933906,0.04114906,110740.0,110730.0,5.45432605]
[1747950934126,0.04114906,110740.0,110730.0,5.37979147]
[1747950935823,0.04114906,110740.0,110730.0,5.71979147]
[1747950940714,0.07404906,110740.0,110730.0,5.71979147]
[1747950941314,0.06901915,110740.0,110730.0,5.71979147]
[1747950941527,0.06804906,110740.0,110730.0,5.71979147]
[1747950941941,0.07707897,110740.0,110730.0,5.71979147]
[1747950944050,0.0329,110740.0,110730.0,5.71979147]
[1747950944260,0.04192942,110740.0,110730.0,5.11147147]
[1747950944472,0.04192942,110740.0,110730.0,5.71979147]
[1747950944625,0.05095892,110740.0,110730.0,5.71979147]
[1747950945175,0.0599885,110740.0,110730.0,5.71979147]
[1747950946122,0.06901817,110740.0,110730.0,5.71979147]
[1747950947088,0.078048,110740.0,110730.0,5.71979147]
[1747950947763,0.07804849,110740.0,110730.0,5.71979147]
[1747950948160,0.07666104,110740.0,110730.0,5.71979147]
[1747950949122,0.07066104,110740.0,110730.0,5.71979147]
[1747950949949,0.07066153,110740.0,110730.0,5.71979147]
[1747950951584,0.07066153,110740.0,110730.0,5.74687047]
[1747950952314,0.10296153,110740.0,110730.0,5.74687047]
[1747950956106,0.10296153,110740.0,110730.0,5.13013226]
[1747950956312,0.10296153,110740.0,110730.0,5.31074822]
[1747950956719,0.09696153,110740.0,110730.0,5.31074822]
[1747950956930,0.09696153,110740.0,110730.0,5.32880918]
[1747950957070,0.09696153,110740.0,110730.0,5.72880918]
[1747950957872,0.09696202,110740.0,110730.0,5.74687047]
[1747950959361,0.04514947,110740.0,110730.0,5.74687047]
[1747950961720,0.0607,110760.0,110750.0,0.01805827]
[1747950961990,0.27936335,110770.0,110760.0,0.36708476]
[1747950962199,0.28839098,110770.0,110760.0,4.1920858]
[1747950962610,0.279364,110770.0,110760.0,4.18305776]
[1747950962811,0.27033678,110770.0,110760.0,4.17402964]
[1747950963269,0.26130948,110770.0,110760.0,4.17402964]
[1747950963499,0.26230948,110770.0,110760.0,4.17502964]
[1747950964219,0.25428201,110770.0,110760.0,4.16600144]
[1747950964673,0.19358201,110770.0,110760.0,4.35560032]
[1747950965118,0.25588201,110770.0,110760.0,4.35560032]
[1747950965965,0.25588201,110770.0,110760.0,4.76462868]
[1747950966182,0.22538201,110770.0,110760.0,4.76462868]
[1747950966407,0.0663,110770.0,110760.0,4.76462868]
[1747950966636,0.0220542,110770.0,110760.0,4.78268483]
[1747950966870,0.02205412,110770.0,110760.0,4.78268483]
[1747950967302,0.01302698,110770.0,110760.0,4.78268483]
[1747950967509,0.0220542,110770.0,110760.0,4.78268483]
[1747950968154,0.02205412,110770.0,110760.0,4.78268483]
[1747950968567,0.01302698,110770.0,110760.0,4.78268483]
[1747950968778,0.01302698,110770.0,110760.0,4.78098906]
[1747950968996,0.02205404,110770.0,110760.0,4.78098906]
[1747950969699,0.004,110770.0,110760.0,4.81398906]
[1747950969914,0.004,110770.0,110760.0,4.93403462]
[1747950972225,0.002,110770.0,110760.0,4.93303462]
[1747950972425,0.003,110770.0,110760.0,4.93403462]
[1747950972747,0.004,110770.0,110760.0,4.93503462]
[1747950974535,0.004,110770.0,110760.0,4.97664347]
[1747950980214,0.002,110790.0,110780.0,0.59345855]
[1747950980426,0.002,110790.0,110780.0,5.52815711]
[1747950980828,0.002,110790.0,110780.0,5.95521711]
[1747950982151,0.002,110790.0,110780.0,5.96862883]
[1747950982513,0.003,110790.0,110780.0,5.97062883]
[1747950983091,0.004,110790.0,110780.0,5.97362883]
[1747950984573,0.08947164,110810.0,110800.0,0.20758023]
[1747950984790,0.08947164,110810.0,110800.0,4.63131323]
[1747950985315,0.08947164,110810.0,110800.0,5.03131323]
[1747950985655,0.09152266,110810.0,110800.0,5.03131323]
[1747950985856,0.09152266,110810.0,110800.0,5.05837223]
[1747950986073,0.09252266,110810.0,110800.0,5.05837223]
[1747950986783,0.06545102,110810.0,110800.0,5.14791779]
[1747950986994,0.07447474,110810.0,110800.0,5.14791779]
[1747950987189,0.08349862,110810.0,110800.0,5.14791779]
[1747950987428,0.07447474,110810.0,110800.0,5.14791779]
[1747950987754,0.08349862,110810.0,110800.0,5.14791779]
[1747950988767,0.08249862,110810.0,110800.0,5.14791779]
[1747950989002,0.08049862,110810.0,110800.0,5.14891779]
[1747950989170,0.08049862,110810.0,110800.0,5.14991779]
[1747950989369,0.07147474,110810.0,110800.0,5.14991779]
[1747950989810,0.08049862,110810.0,110800.0,5.14991779]
[1747950991496,0.08049862,110810.0,110800.0,4.90365579]
[1747950991706,0.08049862,110810.0,110800.0,5.08416197]
[1747950991907,0.08049862,110810.0,110800.0,5.11123679]
[1747950993132,0.08952275,110810.0,110800.0,5.11123679]
[1747950994126,0.08049862,110810.0,110800.0,5.11123679]
[1747950994472,0.08952258,110810.0,110800.0,5.11123679]
[1747950995549,0.08952258,110810.0,110800.0,5.18075679]
[1747950995763,0.09854671,110810.0,110800.0,5.45119679]
[1747950997403,0.08952258,110810.0,110800.0,5.45119679]
[1747950997582,0.09854662,110810.0,110800.0,5.48509854]
[1747950997804,0.09854662,110810.0,110800.0,5.45119679]
[1747950998391,0.09854662,110810.0,110800.0,5.84059679]
[1747951001511,0.10757083,110810.0,110800.0,5.84059679]
[1747951002223,0.09854662,110810.0,110800.0,5.84059679]
[1747951003982,0.10757083,110810.0,110800.0,5.84059679]
[1747951005016,0.10757075,110810.0,110800.0,5.84059679]
[1747951006330,0.28805987,110810.0,110800.0,5.22385209]
[1747951006557,0.28805987,110810.0,110800.0,4.535751]
[1747951006558,0.2609888,110810.0,110800.0,4.535751]
[1747951006792,0.35053436,110810.0,110800.0,1.026059]
[1747951007020,0.35053436,110810.0,110800.0,0.999]
[1747951007242,0.35053436,110810.0,110800.0,1.339]
[1747951007921,0.35053436,110810.0,110800.0,1.337]
[1747951008357,0.35553436,110810.0,110800.0,1.338]
[1747951011392,0.35276383,110810.0,110800.0,1.338]
[1747951013392,0.35276383,110810.0,110800.0,1.0676]
[1747951013591,0.35276383,110810.0,110800.0,1.33804]
[1747951016497,0.35276383,110810.0,110800.0,0.7304]
[1747951016932,0.35276383,110810.0,110800.0,1.33792]
[1747951026401,0.35276383,110810.0,110800.0,0.7304]
[1747951026584,0.35276383,110810.0,110800.0,1.33796]
[1747951033517,0.35276383,110810.0,110800.0,0.99796]
[1747951035686,0.35276383,110810.0,110800.0,1.33796]
[1747951045200,0.35276383,110810.0,110800.0,0.99796]
[1747951045429,0.34976383,110810.0,110800.0,0.99796]
[1747951045715,0.34776383,110810.0,110800.0,0.99696]
[1747951045915,0.35176383,110810.0,110800.0,0.99796]
[1747951046159,0.35476383,110810.0,110800.0,0.99896]
[1747951048152,0.35476383,110810.0,110800.0,1.33896]
[1747951052024,0.35476383,110810.0,110800.0,0.99896]
[1747951072552,0.29513436,110810.0,110800.0,0.99896]
[1747951075296,0.29384226,110810.0,110800.0,0.99896]
[1747951075949,0.3394936,110810.0,110800.0,0.33668]
[1747951076152,0.3414936,110810.0,110800.0,0.33668]
[1747951076990,0.3414936,110810.0,110800.0,0.60716]
[1747951083844,0.3414936,110810.0,110800.0,0.99664]
[1747951087194,0.3414936,110810.0,110800.0,0.72616]
[1747951087440,0.3414936,110810.0,110800.0,0.99664]
[1747951087761,0.3414936,110810.0,110800.0,0.72616]
[1747951087978,0.3414936,110810.0,110800.0,0.7262]
[1747951088198,0.3414936,110810.0,110800.0,0.99668]
[1747951092750,0.3414936,110810.0,110800.0,0.6072]
[1747951108534,0.2777936,110810.0,110800.0,0.7072]
[1747951108750,0.009,110810.0,110800.0,1.31908023]
[1747951108958,0.02704768,110810.0,110800.0,1.31908023]
[1747951109174,0.03607189,110810.0,110800.0,0.60844023]
[1747951109393,0.03607189,110810.0,110800.0,5.95844023]
[1747951109598,0.04509601,110810.0,110800.0,5.55844023]
[1747951109805,0.03809601,110810.0,110800.0,5.55844023]
[1747951110007,0.03809601,110810.0,110800.0,5.95944023]
[1747951110241,0.04209601,110810.0,110800.0,5.96044023]